bitfinex/quotes_SOLUSD_20220128
["timestamp","ask_amount","ask_price","bid_price","bid_amount"]
[1643380382935,0.30572084,88.767,88.6,16.928]
[1643380383135,2.95669142,88.766,88.6,16.928]
[1643380383334,28.39075403,88.766,88.6,16.928]
[1643380383540,16.93,88.75,88.61,19.58]
[1643380383738,16.93,88.75,88.61,30.505]
[1643380383937,16.93,88.75,88.62,6.0]
[1643380384138,2.95669142,88.78,88.63,13.58]
[1643380384336,2.95669142,88.78,88.631,46.90884603]
[1643380384536,2.95669142,88.749,88.641,6.0]
[1643380384743,2.95669142,88.749,88.504,0.25]
[1643380384951,0.312423,88.751,88.55,169.7]
[1643380385139,0.31374591,88.741,88.56,13.58]
[1643380385338,13.58,88.74,88.56,13.58]
[1643380385540,60.13598997,88.74,88.56,13.58]
[1643380385736,17.77492736,88.739,88.561,42.06213025]
[1643380385939,16.39168653,88.759,88.561,42.31213025]
[1643380386142,77.1918,88.868,88.563,67.22]
[1643380386341,77.1918,88.868,88.71,169.7]
[1643380386541,77.1918,88.868,88.72,19.58]
[1643380386739,75.0,88.803,88.67,169.7]
[1643380386938,86.7052976,88.803,88.67,13.58]
[1643380387141,86.7052976,88.803,88.62,169.7]
[1643380387142,2.95669142,88.802,88.62,169.7]
[1643380387339,0.3139026,88.801,88.64,13.58]
[1643380387539,0.31702608,88.766,88.61,13.58]
[1643380387740,16.936,88.75,88.61,13.58]
[1643380388342,33.82334764,88.75,88.61,13.58]
[1643380388541,2.95669142,88.749,88.611,0.2]
[1643380388744,16.934,88.74,88.611,0.2]
[1643380388944,112.1,88.739,88.611,0.2]
[1643380389943,16.934,88.73,88.611,0.2]
[1643380390343,2.95669142,88.729,88.574,0.2]
[1643380390543,2.95669142,88.729,88.5,169.7]
[1643380390544,0.30005362,88.714,88.54,13.58]
[1643380390746,13.58,88.7,88.541,0.2]
[1643380390945,13.58,88.71,88.55,13.58]
[1643380391247,9.85812608,88.746,88.561,112.1]
[1643380391447,201.5402,88.8,88.562,0.2]
[1643380391643,201.5402,88.8,88.57,281.8]
[1643380391844,201.5402,88.8,88.58,13.58]
[1643380392043,201.5402,88.8,88.59,6.0]
[1643380392245,56.42,88.76,88.62,16.923]
[1643380392445,16.923,88.77,88.63,13.58]
[1643380392644,16.923,88.77,88.631,6.2]
[1643380392844,78.9674,88.788,88.641,35.71689738]
[1643380393045,78.9674,88.788,88.65,13.58]
[1643380393254,11.70808662,88.778,88.651,0.2]
[1643380393455,11.70808662,88.778,88.661,42.76376888]
[1643380393656,78.9674,88.788,88.662,0.2]
[1643380393860,78.9674,88.788,88.67,13.58]
[1643380394059,78.9674,88.788,88.671,0.2]
[1643380395661,78.9674,88.788,88.671,0.45]
[1643380395863,16.913,88.81,88.681,39.34075969]
[1643380396062,90.06995053,88.816,88.691,6.0]
[1643380396262,90.06995053,88.816,88.692,0.25]
[1643380396465,90.06995053,88.816,88.701,45.35644349]
[1643380396665,90.06995053,88.816,88.71,13.58]
[1643380396862,90.06995053,88.816,88.711,0.2]
[1643380397081,90.06995053,88.816,88.72,6.0]
[1643380397280,90.06995053,88.816,88.72,19.58]
[1643380397480,90.06995053,88.816,88.721,0.2]
[1643380397681,16.913,88.81,88.701,0.2]
[1643380397881,16.913,88.81,88.691,0.2]
[1643380398084,16.913,88.81,88.63,56.388]
[1643380398085,10.7246483,88.809,88.681,43.41668952]
[1643380398282,13.68133972,88.809,88.682,0.2]
[1643380398582,16.913,88.81,88.691,6.0]
[1643380398986,16.913,88.81,88.691,6.2]
[1643380399183,16.913,88.81,88.701,38.84014379]
[1643380399382,16.913,88.81,88.702,0.2]
[1643380399581,16.913,88.81,88.554,167.805]
[1643380399582,27.6376483,88.81,88.701,0.2]
[1643380399785,0.32378351,88.8,88.67,13.58]
[1643380399985,16.922,88.79,88.671,0.2]
[1643380400184,16.922,88.79,88.641,0.2]
[1643380400484,10.7246483,88.789,88.641,41.26175357]
[1643380400684,10.7246483,88.789,88.642,0.2]
[1643380401084,10.7246483,88.789,88.651,6.0]
[1643380401283,10.7246483,88.789,88.661,48.62285543]
[1643380401489,10.7246483,88.789,88.662,0.2]
[1643380401684,10.7246483,88.789,88.671,6.0]
[1643380402184,10.66725,88.786,88.671,6.0]
[1643380402384,10.66725,88.786,88.67,13.58]
[1643380402584,10.66725,88.786,88.671,0.2]
[1643380402783,10.66725,88.786,88.671,42.57715802]
[1643380402983,10.66725,88.786,88.672,0.2]
[1643380403187,10.66725,88.786,88.681,6.0]
[1643380403486,10.66725,88.786,88.672,0.2]
[1643380403684,0.31926325,88.768,88.611,0.2]
[1643380403985,16.924,88.75,88.582,0.2]
[1643380404189,112.1,88.733,88.59,13.58]
[1643380404384,112.1,88.733,88.591,46.92040346]
[1643380404385,10.66725,88.719,88.591,46.92040346]
[1643380404590,10.66725,88.719,88.592,0.2]
[1643380405389,112.1,88.718,88.601,6.0]
[1643380405590,10.66725,88.716,88.601,6.0]
[1643380405790,112.1,88.718,88.601,6.0]
[1643380406991,56.447,88.71,88.601,6.0]
[1643380407191,56.447,88.71,88.592,0.2]
[1643380407392,16.937,88.7,88.581,0.2]
[1643380407592,0.3202636,88.673,88.549,6.0]
[1643380408093,0.3202636,88.673,88.54,6.0]
[1643380408293,10.66725,88.673,88.54,6.0]
[1643380408494,16.942,88.66,88.54,22.939]
[1643380408696,16.942,88.66,88.55,13.58]
[1643380408994,112.1,88.659,88.551,35.57774114]
[1643380409194,10.66725,88.658,88.56,6.0]
[1643380409398,10.66725,88.658,88.551,0.2]
[1643380409597,16.942,88.65,88.544,4.64081854]
[1643380409894,10.66725,88.648,88.552,2.13355071]
[1643380410095,10.66725,88.648,88.56,13.58]
[1643380410294,10.66725,88.648,88.561,0.2]
[1643380410494,72.9039,88.765,88.563,75.0]
[1643380410697,56.421,88.76,88.602,112.1]
[1643380410898,74.7851,88.765,88.61,13.58]
[1643380411102,74.7851,88.765,88.62,6.0]
[1643380411316,100.10401215,88.697,88.611,0.2]
[1643380411505,100.10401215,88.697,88.551,4.64081854]
[1643380411913,0.31858766,88.679,88.551,4.64081854]
[1643380412111,56.457,88.7,88.551,4.64081854]
[1643380412307,56.457,88.7,88.552,46.92671328]
[1643380412308,0.31525453,88.684,88.552,46.92671328]
[1643380412507,0.31525453,88.684,88.553,0.2]
[1643380412708,16.939,88.67,88.553,0.2]
[1643380412905,16.939,88.67,88.54,4.64081854]
[1643380413505,16.939,88.67,88.55,6.0]
[1643380413705,16.939,88.67,88.551,40.86249217]
[1643380413906,16.939,88.67,88.552,0.2]
[1643380414106,16.939,88.67,88.561,6.0]
[1643380414307,16.934,88.69,88.562,0.25]
[1643380414523,16.934,88.69,88.561,6.2]
[1643380414706,16.934,88.69,88.57,6.0]
[1643380414908,16.934,88.69,88.571,41.84428842]
[1643380415110,16.934,88.69,88.572,11.03863]
[1643380415308,16.934,88.69,88.573,0.2]
[1643380415509,112.1,88.689,88.582,6.0]
[1643380415734,16.935,88.68,88.582,6.0]
[1643380416137,56.435,88.72,88.591,48.49929728]
[1643380416336,11.71210722,88.738,88.592,0.45]
[1643380416535,11.71210722,88.738,88.601,6.0]
[1643380416935,11.71210722,88.738,88.602,0.25]
[1643380417237,16.929,88.71,88.601,0.2]
[1643380417438,16.929,88.71,88.592,0.2]
[1643380417639,129.64485455,88.709,88.584,0.2]
[1643380417836,141.32066952,88.709,88.594,10.83594]
[1643380418136,112.1,88.707,88.595,0.2]
[1643380418336,56.454,88.7,88.597,10.83558]
[1643380418536,56.454,88.7,88.598,0.2]
[1643380418738,56.454,88.7,88.599,10.83533]
[1643380418937,56.454,88.7,88.6,0.2]
[1643380419135,56.454,88.7,88.602,10.83496]
[1643380419336,68.12981497,88.7,88.603,0.2]
[1643380419536,68.12981497,88.7,88.604,10.83472]
[1643380419739,68.12981497,88.7,88.605,0.2]
[1643380419938,68.12981497,88.7,88.606,10.83448]
[1643380420137,0.30464414,88.69,88.607,0.2]
[1643380420339,17.24764414,88.69,88.565,0.2]
[1643380420540,56.474,88.67,88.551,6.0]
[1643380420740,65.204,88.67,88.566,10.83937]
[1643380420939,112.1,88.669,88.567,49.63030856]
[1643380421139,112.1,88.669,88.568,11.03912]
[1643380421342,112.1,88.669,88.569,0.2]
[1643380421541,16.942,88.66,88.569,0.2]
[1643380421940,56.492,88.65,88.569,0.2]
[1643380422241,56.492,88.65,88.523,4.64081854]
[1643380422440,112.1,88.649,88.524,10.84451]
[1643380422640,112.1,88.649,88.525,0.2]
[1643380422838,112.1,88.649,88.527,10.84414]
[1643380423040,16.948,88.64,88.528,0.2]
[1643380423239,16.948,88.64,88.53,10.84378]
[1643380423438,16.948,88.64,88.531,0.2]
[1643380423639,0.32291923,88.638,88.532,10.84353]
[1643380423841,0.32291923,88.638,88.533,0.2]
[1643380424042,29.22066952,88.637,88.533,11.04341]
[1643380424239,112.1,88.636,88.533,10.44341]
[1643380424439,0.32327291,88.606,88.533,10.44341]
[1643380424847,29.22066952,88.635,88.533,10.44341]
[1643380425047,112.1,88.636,88.533,10.44341]
[1643380425246,112.1,88.636,88.534,3.11545654]
[1643380425541,112.1,88.636,88.535,10.84316]
[1643380425740,112.1,88.636,88.536,3.11536284]
[1643380425941,16.946,88.63,88.517,3.11545654]
[1643380426342,16.946,88.63,88.518,43.60739268]
[1643380426547,16.946,88.63,88.519,3.11379241]
[1643380427344,16.946,88.63,88.519,6.22924895]
[1643380427541,16.946,88.63,88.522,3.11545654]
[1643380427741,112.1,88.629,88.523,3.11545654]
[1643380427942,16.946,88.63,88.524,3.11545654]
[1643380428142,16.942,88.65,88.523,3.11545654]
[1643380428342,16.942,88.65,88.538,46.47788628]
[1643380428542,16.942,88.65,88.548,6.0]
[1643380428743,16.942,88.65,88.549,3.11379241]
[1643380428941,16.942,88.65,88.549,9.36379241]
[1643380429142,24.573,88.672,88.56,42.28001413]
[1643380429343,16.938,88.67,88.561,3.36379241]
[1643380429544,16.938,88.67,88.571,6.0]
[1643380429849,112.1,88.669,88.571,6.0]
[1643380430242,112.1,88.669,88.572,3.11668741]
[1643380430444,112.1,88.669,88.572,9.11668741]
[1643380430643,24.573,88.672,88.576,44.13336203]
[1643380430842,16.935,88.68,88.577,0.25]
[1643380431044,152.66976289,88.734,88.586,6.0]
[1643380431246,152.66976289,88.734,88.587,3.11644081]
[1643380431446,17.54485455,88.714,88.591,45.24249884]
[1643380432043,16.932,88.7,88.601,6.0]
[1643380434347,3.04561165,88.768,88.601,6.0]
[1643380434348,16.929,88.72,88.602,3.12272935]
[1643380434650,17.54485455,88.732,88.616,3.11545654]
[1643380434844,75.11156289,88.734,88.621,3.11545654]
[1643380435051,75.11156289,88.734,88.633,41.56326901]
[1643380435249,75.11156289,88.734,88.636,3.11545654]
[1643380435447,75.11156289,88.734,88.643,6.0]
[1643380435644,75.11156289,88.734,88.633,41.56326901]
[1643380435645,75.11156289,88.734,88.647,41.62229548]
[1643380436049,24.8497,88.769,88.657,6.0]
[1643380436244,10.66725,88.768,88.657,6.0]
[1643380436445,16.914,88.8,88.69,16.912]
[1643380436647,3.04561165,88.845,88.66,16.69545654]
[1643380436846,16.37508436,88.835,88.666,3.11545654]
[1643380437047,16.37508436,88.835,88.677,36.62291801]
[1643380437446,23.7397,88.85,88.72,16.906]
[1643380437651,115.27111205,88.852,88.731,44.79511926]
[1643380437846,79.4701,88.868,88.732,0.25]
[1643380438046,16.37508436,88.882,88.741,6.0]
[1643380438250,3.04561165,88.89,88.741,6.0]
[1643380438548,3.04561165,88.902,88.751,45.03171132]
[1643380438759,23.7397,88.93,88.781,36.80434857]
[1643380438947,23.7397,88.93,88.781,148.90434857]
[1643380439146,105.23486042,88.943,88.791,6.0]
[1643380439350,10.76725,88.942,88.792,0.25]
[1643380439547,16.887,88.94,88.801,49.60916536]
[1643380439747,0.1,88.939,88.802,0.1]
[1643380439949,6.95923564,88.939,88.811,6.0]
[1643380440350,0.1,88.94,88.812,0.25]
[1643380440549,10.66725,88.938,88.812,0.25]
[1643380440751,0.1,88.937,88.812,0.25]
[1643380440952,10.66725,88.936,88.812,0.25]
[1643380441150,0.1,88.935,88.82,22.887]
[1643380441351,10.66725,88.934,88.821,41.540341]
[1643380441549,0.1,88.933,88.822,0.1]
[1643380442050,0.1,88.933,88.831,6.0]
[1643380443252,16.888,88.93,88.831,6.0]
[1643380443453,0.1,88.929,88.831,6.1]
[1643380443654,0.1,88.929,88.84,6.0]
[1643380443854,0.1,88.929,88.841,45.54511461]
[1643380444052,0.1,88.929,88.842,0.1]
[1643380444453,10.66725,88.928,88.842,0.1]
[1643380444655,0.1,88.927,88.842,0.1]
[1643380444854,16.89,88.92,88.831,0.1]
[1643380445052,16.89,88.92,88.704,3.11545654]
[1643380445053,83.90685,88.919,88.79,6.0]
[1643380445454,0.1,88.918,88.78,13.58]
[1643380445653,0.1,88.918,88.781,49.50426581]
[1643380445654,10.66725,88.917,88.781,49.50426581]
[1643380445855,0.1,88.916,88.79,6.0]
[1643380446053,10.76725,88.916,88.82,16.887]
[1643380446254,0.1,88.915,88.821,37.51632819]
[1643380446462,10.66725,88.914,88.822,0.1]
[1643380446658,0.1,88.913,88.831,6.0]
[1643380446954,10.66725,88.912,88.832,0.25]
[1643380447356,0.1,88.911,88.84,16.883]
[1643380447557,10.66725,88.91,88.841,40.21660732]
[1643380447758,10.66725,88.91,88.841,40.56660732]
[1643380447957,0.1,88.909,88.842,0.1]
[1643380448157,73.7046,88.99,88.851,6.0]
[1643380448356,73.7046,88.99,88.87,16.877]
[1643380448558,111.9,88.994,88.88,6.0]
[1643380448760,111.9,88.994,88.89,13.58]
[1643380448957,80.25489226,89.049,88.891,36.85928141]
[1643380448958,78.7552,89.049,88.891,36.85928141]
[1643380449159,11.69097118,89.036,88.9,6.0]
[1643380449357,40.14248436,89.026,88.901,6.0]
[1643380449557,40.14248436,89.026,88.891,37.10928141]
[1643380449558,16.872,89.01,88.891,36.85928141]
[1643380449759,16.872,89.01,88.772,71.6582]
[1643380449956,16.37508436,89.009,88.85,13.58]
[1643380450159,26.36812155,89.009,88.86,6.0]
[1643380450360,12.94972861,89.008,88.82,13.58]
[1643380450556,16.882,88.97,88.86,16.879]
[1643380450960,16.882,88.97,88.87,6.0]
[1643380451160,33.25708436,88.97,88.85,6.0]
[1643380451558,16.882,88.97,88.85,6.0]
[1643380451761,16.882,88.97,88.86,16.88]
[1643380452160,16.882,88.97,88.87,6.0]
[1643380452760,16.882,88.97,88.85,6.0]
[1643380453161,16.882,88.97,88.851,39.9452524]
[1643380453661,16.882,88.97,88.861,6.0]
[1643380453864,16.882,88.97,88.84,13.58]
[1643380454064,112.1,88.969,88.83,56.267]
[1643380454261,16.884,88.95,88.83,56.267]
[1643380454871,16.884,88.95,88.831,34.91110861]
[1643380455264,16.884,88.95,88.832,0.25]
[1643380455468,16.884,88.95,88.841,6.0]
[1643380456267,16.88,88.97,88.841,6.0]
[1643380456668,0.32317261,88.926,88.772,23.3989]
[1643380456866,0.32317261,88.926,88.716,1.52642483]
[1643380456867,0.32317261,88.926,88.729,16.825]
[1643380457067,0.32317261,88.926,88.72,71.0598]
[1643380457068,0.31736397,88.925,88.72,71.0598]
[1643380457266,16.894,88.9,88.72,71.0598]
[1643380457466,0.31313328,88.894,88.721,42.75482372]
[1643380457768,0.31313328,88.894,88.73,56.333]
[1643380457968,10.78260018,88.893,88.731,6.0]
[1643380458165,10.78260018,88.893,88.741,42.43653214]
[1643380458367,10.78260018,88.893,88.742,0.25]
[1643380458567,10.78260018,88.893,88.751,6.0]
[1643380458568,111.9,88.856,88.751,6.0]
[1643380458766,111.9,88.89,88.751,6.0]
[1643380458969,77.9887,88.898,88.752,0.25]
[1643380459369,77.9887,88.898,88.76,6.0]
[1643380459768,16.896,88.88,88.76,6.0]
[1643380459968,16.896,88.88,88.75,6.0]
[1643380460170,16.896,88.88,88.741,0.25]
[1643380460570,16.896,88.88,88.742,20.65888605]
[1643380460767,16.896,88.88,88.743,0.25]
[1643380460967,16.896,88.88,88.752,6.0]
[1643380461376,16.896,88.88,88.753,6.25]
[1643380461583,16.896,88.88,88.763,6.0]
[1643380461977,16.896,88.88,88.765,6.0]
[1643380462779,16.896,88.88,88.766,0.25]
[1643380463479,16.896,88.88,88.77,6.0]
[1643380463679,16.896,88.88,88.77,16.81446]
[1643380463878,16.896,88.88,88.771,10.81434]
[1643380464280,16.896,88.88,88.772,0.25]
[1643380464494,16.896,88.88,88.773,10.81409]
[1643380464897,16.896,88.88,88.774,0.25]
[1643380465095,15.896,88.88,88.776,10.81373]
[1643380465297,16.898,88.87,88.777,0.25]
[1643380465498,16.898,88.87,88.779,10.81336]
[1643380465899,16.898,88.87,88.78,0.25]
[1643380466500,16.898,88.87,88.782,10.813]
[1643380467099,16.898,88.87,88.79,6.0]
[1643380467298,16.898,88.87,88.791,10.8119]
[1643380467499,16.9,88.86,88.791,10.8119]
[1643380467700,16.9,88.86,88.791,0.78977599]
[1643380467902,0.30772742,88.849,88.727,1.52642483]
[1643380468099,0.30772742,88.849,88.728,10.81958]
[1643380468598,16.91,88.83,88.728,10.81958]
[1643380469803,16.91,88.83,88.729,0.25]
[1643380470002,16.91,88.83,88.739,10.81824]
[1643380470203,16.902,88.85,88.739,10.81824]
[1643380470404,16.902,88.85,88.74,6.25]
[1643380470606,16.902,88.85,88.751,38.30088789]
[1643380470907,24.2273,88.868,88.753,10.81653]
[1643380471109,1.49969226,88.889,88.76,6.0]
[1643380471306,1.49969226,88.891,88.771,39.77182733]
[1643380471609,75.3861,88.923,88.771,39.77182733]
[1643380471610,1.49969226,88.904,88.783,10.81288]
[1643380471805,75.3861,88.923,88.783,10.81288]
[1643380471806,1.49969226,88.918,88.801,46.6835128]
[1643380472006,1.49969226,88.922,88.81,6.0]
[1643380472206,1.49969226,88.935,88.812,10.80935]
[1643380472410,1.49969226,88.935,88.813,0.25]
[1643380472608,16.886,88.93,88.821,38.79369214]
[1643380472808,1.49969226,88.937,88.823,10.80801]
[1643380473009,1.49969226,88.945,88.83,62.265]
[1643380473208,1.49969226,88.95,88.84,13.58]
[1643380473411,1.49969226,88.961,88.841,35.09984085]
[1643380473613,1.49969226,88.964,88.85,6.0]
[1643380473808,1.49969226,88.967,88.851,0.25]
[1643380474011,1.49969226,88.97,88.87,16.875]
[1643380474208,1.49969226,88.97,88.871,45.60527117]
[1643380474407,1.49969226,88.97,88.88,6.0]
[1643380474607,1.49969226,88.971,88.88,6.0]
[1643380475011,1.49969226,88.967,88.88,6.0]
[1643380475409,1.49969226,88.965,88.871,45.60527117]
[1643380475609,1.49969226,88.96,88.871,45.60527117]
[1643380475810,1.49969226,88.96,88.88,6.0]
[1643380476012,1.49969226,88.959,88.83,13.58]
[1643380476210,1.49969226,88.941,88.83,13.58]
[1643380476412,1.49969226,88.944,88.84,6.0]
[1643380476613,1.49969226,88.947,88.842,10.8057]
[1643380476811,1.49969226,88.944,88.843,43.76037382]
[1643380477012,1.49969226,88.943,88.844,10.80545]
[1643380477313,1.49969226,88.938,88.844,10.80545]
[1643380477611,1.49969226,88.937,88.844,10.80545]
[1643380477812,1.49969226,88.933,88.844,10.80545]
[1643380478011,1.49969226,88.931,88.844,10.80545]
[1643380478516,1.49969226,88.931,88.845,48.61506975]
[1643380478712,1.49969226,88.932,88.845,48.61506975]
[1643380478910,1.49969226,88.922,88.845,48.61506975]
[1643380479111,1.49969226,88.921,88.845,48.61506975]
[1643380479311,1.49969226,88.921,88.844,10.80545]
[1643380479713,1.49969226,88.914,88.844,10.80545]
[1643380479913,1.49969226,88.906,88.844,10.80545]
[1643380480317,16.37508436,88.921,88.844,10.80545]
[1643380480318,1.49969226,88.893,88.844,10.80545]
[1643380480515,0.32403925,88.911,88.844,10.80545]
[1643380480516,1.49969226,88.889,88.844,10.80545]
[1643380480722,1.49969226,88.886,88.844,10.80545]
[1643380480914,1.49969226,88.885,88.844,10.80545]
[1643380481315,1.49969226,88.886,88.844,10.80545]
[1643380481517,1.49969226,88.887,88.844,10.80545]
[1643380481715,1.49969226,88.888,88.844,10.80545]
[1643380481916,1.49969226,88.883,88.844,10.80545]
[1643380482116,1.49969226,88.882,88.77,56.308]
[1643380482317,0.31965962,88.916,88.79,10.81202]
[1643380482318,1.49969226,88.876,88.79,10.81202]
[1643380482516,1.49969226,88.864,88.79,10.81202]
[1643380482716,1.49969226,88.855,88.79,10.81202]
[1643380483017,1.49969226,88.854,88.79,10.81202]
[1643380483216,1.49969226,88.849,88.79,10.81202]
[1643380483620,1.49969226,88.847,88.79,10.81202]
[1643380483825,1.49969226,88.849,88.79,10.81202]
[1643380484217,1.49969226,88.848,88.79,10.81202]
[1643380484717,1.49969226,88.852,88.79,10.81202]
[1643380484917,1.49969226,88.858,88.791,47.04189158]
[1643380485117,1.49969226,88.858,88.793,10.81166]
[1643380485325,1.49969226,88.864,88.793,10.81166]
[1643380485920,1.49969226,88.863,88.793,10.81166]
[1643380486124,1.49969226,88.864,88.793,10.81166]
[1643380486321,1.49969226,88.862,88.793,10.81166]
[1643380486921,17.0081,88.972,88.793,10.81166]
[1643380486922,1.49969226,88.872,88.793,10.81166]
[1643380487122,1.49969226,88.878,88.793,10.81166]
[1643380487320,1.49969226,88.88,88.794,0.25]
[1643380487530,1.49969226,88.885,88.8,16.891]
[1643380487721,1.49969226,88.886,88.802,10.81056]
[1643380487922,1.49969226,88.886,88.803,112.1]
[1643380488121,1.49969226,88.886,88.811,48.30583822]
[1643380488321,1.49969226,88.886,88.813,10.80922]
[1643380488523,1.49969226,88.887,88.813,10.80922]
[1643380488726,3.04561165,88.912,88.813,10.80922]
[1643380488727,1.49969226,88.868,88.813,10.80922]
[1643380488921,1.49969226,88.865,88.813,10.80922]
[1643380489121,1.49969226,88.868,88.813,10.80922]
[1643380489526,1.49969226,88.87,88.813,10.80922]
[1643380490023,1.49969226,88.875,88.814,46.79838452]
[1643380490222,1.49969226,88.875,88.816,10.80886]
[1643380490422,1.49969226,88.875,88.82,6.0]
[1643380490624,1.49969226,88.875,88.821,10.80825]
[1643380490822,1.49969226,88.876,88.821,10.80825]
[1643380491230,1.49969226,88.874,88.821,10.80825]
[1643380491425,1.49969226,88.871,88.821,10.80825]
[1643380491625,1.49969226,88.87,88.821,10.80825]
[1643380491923,1.49969226,88.868,88.821,10.80825]
[1643380492124,1.49969226,88.869,88.821,10.80825]
[1643380492323,1.49969226,88.87,88.821,10.80825]
[1643380492525,1.49969226,88.881,88.821,10.80825]
[1643380492926,1.49969226,88.883,88.821,10.80825]
[1643380493225,6.11298522,88.908,88.821,10.80825]
[1643380493226,1.49969226,88.887,88.821,10.80825]
[1643380493425,1.49969226,88.881,88.821,10.80825]
[1643380493625,1.49969226,88.872,88.821,10.80825]
[1643380493829,1.49969226,88.874,88.821,10.80825]
[1643380494025,1.49969226,88.873,88.78,16.894]
[1643380494225,1.49969226,88.871,88.79,6.0]
[1643380494427,1.49969226,88.867,88.79,6.0]
[1643380494626,1.49969226,88.867,88.781,52.43209706]
[1643380494627,1.49969226,88.864,88.781,10.81312]
[1643380494829,3.04561165,88.889,88.76,13.58]
[1643380494830,1.49969226,88.863,88.76,16.898]
[1643380495028,1.49969226,88.863,88.761,0.25]
[1643380495231,1.49969226,88.853,88.761,0.25]
[1643380495431,1.49969226,88.852,88.74,6.0]
[1643380495635,1.49969226,88.846,88.741,10.81799]
[1643380495835,0.3225248,88.866,88.741,10.81799]
[1643380495836,1.49969226,88.829,88.741,10.81799]
[1643380496032,1.49969226,88.826,88.741,10.81799]
[1643380496232,1.49969226,88.829,88.741,10.81799]
[1643380496434,1.49969226,88.827,88.741,10.81799]
[1643380496632,1.49969226,88.83,88.741,10.81799]
[1643380496834,18.40869226,88.83,88.741,10.81799]
[1643380497033,1.49969226,88.829,88.741,10.81799]
[1643380497633,18.40869226,88.83,88.741,10.81799]
[1643380497833,16.909,88.83,88.741,10.81799]
[1643380498551,0.99969226,88.843,88.741,10.81799]
[1643380498751,0.99969226,88.843,88.742,0.25]
[1643380499054,16.7703,88.888,88.751,36.73602574]
[1643380499055,3.04561165,88.888,88.751,36.73602574]
[1643380499250,3.04561165,88.907,88.752,10.81665]
[1643380499453,7.53238307,88.982,88.78,16.895]
[1643380499454,3.04561165,88.923,88.78,16.895]
[1643380499650,6.11332016,88.924,88.791,48.60486597]
[1643380499850,3.06770851,88.924,88.792,0.25]
[1643380500051,3.06770851,88.924,88.8,6.0]
[1643380500249,3.04561165,88.945,88.811,49.28760554]
[1643380500452,3.04561165,88.945,88.82,16.886]
[1643380500652,3.04561165,88.945,88.821,112.1]
[1643380500851,3.04561165,88.951,88.83,13.58]
[1643380501052,3.04561165,88.957,88.831,46.31321631]
[1643380501252,3.04561165,88.959,88.832,112.1]
[1643380501453,3.04561165,88.96,88.831,11.07857045]
[1643380501658,3.04561165,88.941,88.8,18.51967631]
[1643380501850,0.31622558,88.925,88.78,10.26]
[1643380502054,0.31204222,88.921,88.781,12.9603002]
[1643380502253,3.06826419,88.92,88.781,12.9603002]
[1643380502450,9.40541293,88.92,88.791,49.150367]
[1643380502651,16.894,88.91,88.8,16.891]
[1643380502853,9.40541293,88.919,88.801,0.25]
[1643380503052,6.33714874,88.919,88.791,49.150367]
[1643380503352,3.06659257,88.918,88.74,444.59190224]
[1643380503652,16.9,88.87,88.75,16.9]
[1643380503853,112.1,88.869,88.75,16.9]
[1643380504253,112.1,88.869,88.781,53.00891228]
[1643380504451,112.1,88.869,88.781,10.81312]
[1643380505052,16.902,88.86,88.781,10.81312]
[1643380505655,28.78397825,88.86,88.781,10.81312]
[1643380505854,112.1,88.859,88.781,10.81312]
[1643380506056,112.1,88.839,88.7,13.58]